bitfinex/quotes_SOLUSD_20260217
["timestamp","ask_amount","ask_price","bid_price","bid_amount"]
[1771371975172,0.45721162,85.197,85.171,0.49788972]
[1771371976670,2.38628423,85.2,85.17,16.26]
[1771371976671,0.45721162,85.195,85.17,16.26]
[1771371976880,0.45721162,85.179,85.151,0.47623132]
[1771371977555,0.45721162,85.179,85.154,11.74337585]
[1771371980674,0.45721162,85.178,85.154,11.74337585]
[1771371983383,14.12618099,85.18,85.147,16.28]
[1771371983384,0.45721162,85.176,85.147,11.74432199]
[1771371985082,2.38628423,85.17,85.143,28.02487162]
[1771371985290,0.45721162,85.169,85.138,0.47623132]
[1771371985779,0.45721162,85.169,85.141,0.47623132]
[1771371988791,0.45721162,85.159,85.12,2.38628423]
[1771371988965,0.45721162,85.159,85.121,0.47623132]
[1771371992475,0.45721162,85.157,85.121,0.47623132]
[1771371992781,0.45721162,85.157,85.123,0.47623132]
[1771371993078,0.45721162,85.157,85.131,0.47623132]
[1771371996369,0.45721162,85.155,85.132,0.47623132]
[1771371998780,0.45721162,85.153,85.132,0.47623132]
[1771372000384,0.45721162,85.153,85.126,0.47623132]
[1771372001402,0.45721162,85.151,85.126,0.47623132]
[1771372004600,0.45721162,85.151,85.127,11.74715425]
[1771372005492,11.7439812,85.15,85.12,14.62683847]
[1771372005700,0.49751119,85.149,85.121,0.49252156]
[1771372006901,0.49751119,85.149,85.123,0.49252156]
[1771372007126,0.49751119,85.154,85.123,0.49252156]
[1771372008904,0.49751119,85.152,85.125,0.49252156]
[1771372015036,0.49751119,85.152,85.127,0.4523376]
[1771372015408,2.38628423,85.16,85.127,0.4523376]
[1771372015629,0.47718209,85.159,85.127,0.4523376]
[1771372016937,0.47718209,85.159,85.122,12.20007096]
[1771372017716,0.47718209,85.149,85.122,12.20007096]
[1771372018412,0.47718209,85.149,85.123,0.4523376]
[1771372021220,0.47718209,85.149,85.125,0.4523376]
[1771372021428,11.74425603,85.149,85.125,0.4523376]
[1771372021632,0.47718209,85.148,85.125,0.4523376]
[1771372021831,0.47718209,85.148,85.119,16.3]
[1771372022135,0.47718209,85.148,85.119,16.4]
[1771372029440,0.47718209,85.146,85.121,0.4523376]
[1771372032428,0.47718209,85.146,85.123,0.4523376]
[1771372034245,0.47718209,85.146,85.108,29.37416184]
[1771372034246,0.47718209,85.139,85.112,0.4523376]
[1771372034828,0.47718209,85.139,85.11,11.74937813]
[1771372035424,0.47718209,85.139,85.111,0.46642294]
[1771372035625,0.46814793,85.144,85.113,0.46642294]
[1771372037040,0.46814793,85.144,85.114,11.74894846]
[1771372037245,0.46814793,85.144,85.115,0.46642294]
[1771372038327,0.46814793,85.143,85.117,0.46642294]
[1771372041733,0.46814793,85.143,85.119,0.46642294]
[1771372042433,0.46814793,85.141,85.119,0.46642294]
[1771372043840,12.21350851,85.14,85.119,0.46642294]
[1771372044433,0.46814793,85.139,85.119,0.46642294]
[1771372046236,0.46814793,85.137,85.119,0.46642294]
[1771372047649,0.46814793,85.137,85.114,0.46642294]
[1771372047838,0.46814793,85.137,85.108,0.46642294]
[1771372055566,0.46814793,85.137,85.111,0.46642294]
[1771372055859,0.46814793,85.146,85.111,0.46642294]
[1771372057251,0.46814793,85.146,85.111,16.5]
[1771372057451,0.46814793,85.158,85.121,0.46642294]
[1771372057756,11.74274005,85.159,85.131,0.46642294]
[1771372057957,0.46814793,85.158,85.131,0.46642294]
[1771372060171,0.46814793,85.156,85.132,0.46642294]
[1771372061367,0.46814793,85.154,85.132,0.46642294]
[1771372061570,0.46814793,85.154,85.127,0.46642294]
[1771372062671,0.46814793,85.149,85.129,0.46642294]
[1771372064172,0.46814793,85.172,85.131,0.46642294]
[1771372064375,0.46814793,85.169,85.141,0.46642294]
[1771372064677,2.38814634,85.17,85.14,2.38814634]
[1771372064678,0.45462369,85.173,85.143,0.47320488]
[1771372065377,0.45462369,85.173,85.145,0.47320488]
[1771372067563,0.45462369,85.173,85.147,0.47320488]
[1771372068472,0.45462369,85.173,85.149,0.47320488]
[1771372070682,0.45462369,85.173,85.15,11.7439812]
[1771372070890,0.45462369,85.173,85.15,12.21718608]
[1771372071060,0.45462369,85.173,85.151,0.47320488]
[1771372071266,0.45462369,85.179,85.151,0.47320488]
[1771372071478,12.19340138,85.188,85.161,0.47320488]
[1771372072976,12.19340138,85.188,85.163,0.47320488]
[1771372074090,0.49494355,85.193,85.163,0.47320488]
[1771372074575,0.49494355,85.199,85.171,0.48031917]
[1771372074774,0.49494355,85.207,85.171,0.48031917]
[1771372075682,11.7362627,85.206,85.173,0.48031917]
[1771372075987,0.49494355,85.205,85.173,0.48031917]
[1771372080502,0.49494355,85.205,85.175,0.48031917]
[1771372080866,0.49494355,85.219,85.19,2.38814634]
[1771372081172,0.49494355,85.219,85.191,0.48031917]
[1771372081378,0.49494355,85.217,85.191,0.48031917]
[1771372084898,0.49494355,85.215,85.191,0.48031917]
[1771372085277,0.49494355,85.215,85.18,18.96814634]
[1771372085278,0.49494355,85.215,85.192,11.73819137]
[1771372085493,0.49494355,85.215,85.193,0.48031917]
[1771372086891,0.59494355,85.22,85.195,0.48031917]
[1771372087200,12.2294159,85.219,85.195,0.48031917]
[1771372087380,0.49494355,85.218,85.195,0.48031917]
[1771372089497,0.49494355,85.216,85.191,0.48031917]
[1771372092198,0.49494355,85.216,85.193,0.48031917]
[1771372092395,0.59494355,85.22,85.193,0.48031917]
[1771372092595,11.73447235,85.219,85.193,0.48031917]
[1771372092892,0.49494355,85.218,85.194,11.73791581]
[1771372093099,0.49494355,85.218,85.195,0.48031917]
[1771372094282,11.73474776,85.217,85.195,0.48031917]
[1771372095998,0.48665107,85.217,85.195,0.48031917]
[1771372096195,0.48665107,85.209,85.171,0.46106787]
[1771372097604,0.48665107,85.207,85.174,0.46106787]
[1771372098702,0.48665107,85.199,85.169,0.46106787]
[1771372099401,0.48665107,85.199,85.161,11.7424617]
[1771372099606,0.48665107,85.189,85.162,0.46106787]
[1771372099807,0.48665107,85.189,85.161,11.7424617]
[1771372101907,0.48665107,85.187,85.161,11.7424617]
[1771372105422,0.48665107,85.185,85.161,11.7424617]
[1771372106328,0.48665107,85.185,85.161,12.20352957]
[1771372106901,0.48665107,85.185,85.162,0.46106787]
[1771372107220,0.48665107,85.19,85.162,0.46106787]
[1771372107602,0.48665107,85.188,85.162,0.46106787]
[1771372108012,0.48665107,85.188,85.161,0.46106787]
[1771372108409,0.48665107,85.188,85.149,16.6]
[1771372108410,0.48665107,85.188,85.154,0.46106787]
[1771372108608,0.48665107,85.188,85.15,2.38376384]
[1771372108815,0.48665107,85.179,85.148,0.46106787]
[1771372109397,0.48665107,85.179,85.143,16.6]
[1771372109603,0.48665107,85.177,85.142,0.46106787]
[1771372110719,0.48665107,85.169,85.141,0.46106787]
[1771372111105,0.48665107,85.174,85.151,0.46106787]
[1771372112305,11.74080988,85.173,85.151,0.46106787]
[1771372114718,12.22746095,85.173,85.151,0.46106787]
[1771372114911,0.48665107,85.172,85.151,0.46106787]
[1771372116030,12.22773665,85.171,85.151,0.46106787]
[1771372122023,31.7334825,85.18,85.151,0.46106787]
[1771372122228,0.48665107,85.17,85.151,0.46106787]
[1771372131935,0.49480321,85.168,85.151,0.46106787]
[1771372132137,0.49480321,85.168,85.141,0.48150767]
[1771372133518,11.74163701,85.167,85.142,11.74508468]
[1771372133717,11.74163701,85.167,85.143,0.46534987]
[1771372133718,0.45295669,85.166,85.143,0.46534987]
[1771372139855,0.45295669,85.166,85.133,45.98581584]
[1771372140154,0.45295669,85.166,85.06,0.2]
[1771372140155,0.45295669,85.136,85.081,0.46534987]
[1771372140325,0.45295669,85.099,85.081,0.46534987]
[1771372140841,0.45295669,85.089,85.068,0.46534987]
[1771372141151,0.45295669,85.089,85.063,0.46534987]
[1771372141448,0.45295669,85.089,85.061,0.46534987]
[1771372142033,0.45295669,85.087,85.061,0.46534987]
[1771372144440,21.98,85.103,85.06,0.2]
[1771372144441,2.38376384,85.1,85.071,0.46534987]
[1771372145148,0.45295669,85.103,85.071,0.46534987]
[1771372146242,2.38376384,85.12,85.081,0.46534987]
[1771372146441,0.45295669,85.109,85.085,0.46534987]
[1771372147860,0.45295669,85.114,85.091,0.46534987]
[1771372149641,0.45295669,85.125,85.091,0.46534987]
[1771372150156,0.45295669,85.119,85.091,0.46534987]
[1771372151753,0.45295669,85.117,85.091,0.46534987]
[1771372152741,0.45295669,85.122,85.093,0.46534987]
[1771372152940,0.45295669,85.119,85.093,0.46534987]
[1771372154440,11.74839634,85.118,85.093,0.46534987]
[1771372154658,0.46555523,85.117,85.093,0.46534987]
[1771372155743,0.46555523,85.129,85.1,2.38376384]
[1771372155943,2.38921683,85.13,85.101,0.46744388]
[1771372156341,0.46555523,85.129,85.101,0.46744388]
[1771372158663,0.46555523,85.129,85.103,0.46744388]
[1771372159764,0.46555523,85.134,85.104,11.750329]
[1771372159966,0.46555523,85.134,85.105,0.46744388]
[1771372160164,0.46555523,85.134,85.104,11.750329]
[1771372160165,11.74549853,85.139,85.111,0.46744388]
[1771372161567,0.46555523,85.138,85.111,0.46744388]
[1771372165387,11.74577445,85.137,85.111,0.46744388]
[1771372165549,0.46555523,85.136,85.111,0.46744388]
[1771372167375,0.46555523,85.134,85.105,0.46744388]
[1771372169066,0.46555523,85.129,85.105,0.46744388]
[1771372170473,0.46555523,85.128,85.105,0.46744388]
[1771372170671,0.46555523,85.128,85.107,0.46744388]
[1771372170975,11.74692386,85.129,85.107,0.46744388]
[1771372171578,0.46555523,85.128,85.107,0.46744388]
[1771372179771,11.74715425,85.127,85.107,0.46744388]
[1771372179970,0.46555523,85.119,85.096,0.46744388]
[1771372181262,2.38921683,85.13,85.101,0.46744388]
[1771372181582,11.74669282,85.131,85.101,0.46744388]
[1771372181767,12.21224805,85.131,85.101,0.46744388]
[1771372181967,0.46555523,85.13,85.101,0.46744388]
[1771372183780,0.46555523,85.128,85.101,0.46744388]
[1771372186682,11.74715425,85.127,85.103,0.47344961]
[1771372187177,11.74668983,85.131,85.103,0.47344961]
[1771372187586,12.21345149,85.131,85.103,0.47344961]
[1771372188382,0.46676166,85.147,85.111,0.47344961]
[1771372188563,0.46676166,85.146,85.121,0.47344961]
[1771372189592,0.46676166,85.139,85.105,0.47344961]
[1771372192668,0.46676166,85.137,85.107,0.47344961]
[1771372193284,0.46676166,85.137,85.111,0.45119786]
[1771372194583,0.46676166,85.137,85.112,11.74922455]
[1771372194882,11.74591242,85.136,85.113,0.45119786]
[1771372195085,0.48321065,85.135,85.113,0.45119786]
[1771372200091,0.48321065,85.133,85.113,0.45119786]
[1771372200798,12.22896455,85.138,85.115,0.45119786]
[1771372201494,0.48321065,85.137,85.115,0.45119786]
[1771372201898,0.48321065,85.137,85.116,11.7486724]
[1771372202094,0.48321065,85.149,85.121,0.45119786]
[1771372203081,0.48321065,85.148,85.123,0.45119786]
[1771372204183,12.22760563,85.147,85.123,0.45119786]
[1771372204578,0.48321065,85.146,85.123,0.45119786]
[1771372204995,0.48321065,85.146,85.086,4.61729252]
[1771372204996,0.48321065,85.164,85.141,0.45119786]
[1771372205202,0.48321065,85.163,85.141,0.45119786]
[1771372206601,2.38921683,85.17,85.132,0.45119786]
[1771372206602,0.48321065,85.161,85.132,0.45119786]
[1771372207603,0.48321065,85.159,85.132,0.45119786]
[1771372208704,11.74287794,85.158,85.132,0.45119786]
[1771372208900,0.48321065,85.157,85.132,0.45119786]
[1771372212691,0.48321065,85.157,85.118,16.66]
[1771372212692,0.48321065,85.149,85.123,0.45119786]
[1771372213087,0.48321065,85.149,85.118,16.66]
[1771372213802,0.48321065,85.149,85.119,0.45119786]
[1771372214005,0.48321065,85.149,85.121,0.45119786]
[1771372215690,11.74425705,85.148,85.121,0.45119786]
[1771372215890,0.4611429,85.147,85.121,0.45119786]
[1771372217916,0.4611429,85.145,85.121,0.45119786]
[1771372219313,11.74480879,85.144,85.121,0.45119786]
[1771372219514,0.4611429,85.143,85.121,0.45119786]
[1771372219914,0.4611429,85.143,85.122,0.47126722]
[1771372231602,0.4611429,85.141,85.122,0.47126722]
[1771372234616,0.4611429,85.145,85.122,0.47126722]
[1771372234923,12.20578143,85.146,85.122,0.47126722]
[1771372237211,11.74205063,85.164,85.131,0.47126722]
[1771372237432,0.4611429,85.163,85.131,0.47126722]
[1771372237607,0.4611429,85.163,85.141,0.47126722]
[1771372240928,11.74232638,85.162,85.141,0.47126722]
[1771372241111,12.20346928,85.162,85.141,0.47126722]
[1771372244328,0.4611429,85.161,85.141,0.47126722]
[1771372245534,0.49067176,85.159,85.141,0.47126722]
[1771372245707,11.74260216,85.16,85.141,0.47126722]
[1771372249221,0.49067176,85.16,85.141,0.47126722]
[1771372253439,0.45332264,85.158,85.141,0.47126722]
[1771372253627,11.74274005,85.159,85.141,0.47126722]
[1771372254319,12.19606269,85.159,85.141,0.47126722]
[1771372255437,0.45332264,85.158,85.141,0.47126722]
[1771372261843,0.45332264,85.158,85.118,16.66]
[1771372261844,0.45332264,85.156,85.131,0.46210744]
[1771372264347,0.45332264,85.154,85.128,11.74701105]
[1771372264846,0.45332264,85.154,85.129,0.46210744]
[1771372266152,0.45332264,85.154,85.131,0.46210744]
[1771372266655,11.74356746,85.153,85.131,0.46210744]
[1771372266848,0.45332264,85.152,85.131,0.46210744]
[1771372267146,11.74311398,85.157,85.132,0.46210744]
[1771372268756,0.45332264,85.174,85.141,0.46210744]
[1771372268930,0.45332264,85.173,85.141,0.46210744]
[1771372271140,0.45332264,85.171,85.141,0.46210744]
[1771372271642,0.45332264,85.169,85.141,0.46210744]
[1771372275034,0.46404242,85.167,85.133,0.49714679]
[1771372275246,0.46404242,85.159,85.133,0.49714679]
[1771372276155,0.46404242,85.149,85.112,0.49714679]
[1771372277054,0.46404242,85.147,85.112,0.49714679]
[1771372278655,0.46404242,85.145,85.112,0.49714679]
[1771372280050,0.46404242,85.143,85.112,0.49714679]
[1771372283648,0.46404242,85.139,85.112,0.49714679]
[1771372285254,11.74563649,85.138,85.112,0.49714679]
[1771372285457,0.46404242,85.137,85.112,0.49714679]
[1771372286346,0.46404242,85.16,85.121,0.49714679]
[1771372286670,0.46404242,85.149,85.121,0.49714679]
[1771372287655,0.46404242,85.147,85.121,0.49714679]
[1771372291656,0.46404242,85.145,85.121,0.49714679]
[1771372293054,0.46404242,85.145,85.11,2.3884958]
[1771372293055,0.46404242,85.143,85.123,0.49714679]
[1771372297383,0.46404242,85.141,85.123,0.49714679]
[1771372297563,0.46404242,85.141,85.111,0.49714679]
[1771372299858,11.74536058,85.14,85.112,0.49714679]
[1771372302185,11.74536058,85.14,85.114,0.49714679]
[1771372302387,11.74536058,85.14,85.121,0.49714679]
[1771372302564,0.46404242,85.149,85.121,0.49714679]
[1771372303486,0.46404242,85.148,85.121,0.49714679]
[1771372304668,0.46646186,85.146,85.121,0.49714679]
[1771372306790,12.21113271,85.145,85.121,0.49714679]
[1771372306968,12.21113271,85.145,85.122,0.49177399]
[1771372308383,0.46646186,85.149,85.122,0.49177399]
[1771372310485,0.46646186,85.147,85.122,0.49177399]
[1771372310785,11.74425705,85.148,85.122,0.49177399]
[1771372316980,0.45890728,85.148,85.122,0.49177399]
[1771372319395,11.74439498,85.147,85.122,0.49177399]
[1771372320395,11.74439498,85.147,85.124,0.49612057]
[1771372321888,0.45890728,85.146,85.124,0.49612057]
[1771372322590,0.45890728,85.146,85.115,11.74872906]
[1771372322782,0.45890728,85.146,85.116,0.49612057]
[1771372323996,0.45890728,85.144,85.116,0.49612057]
[1771372324200,0.45890728,85.144,85.118,0.49612057]
[1771372325700,0.45890728,85.142,85.118,0.49612057]
[1771372330286,0.45890728,85.14,85.118,0.49612057]
[1771372334107,11.74522263,85.141,85.12,0.49612057]
[1771372334311,0.45890728,85.15,85.121,0.49612057]
[1771372334688,0.45890728,85.15,85.13,2.3884958]
[1771372334901,11.74368079,85.153,85.131,0.45994392]
[1771372338809,11.74368079,85.153,85.132,0.45994392]
[1771372339591,0.49877375,85.168,85.141,0.45994392]
[1771372339787,11.74136129,85.169,85.141,0.45994392]
[1771372339987,11.7409227,85.173,85.151,0.45994392]
[1771372341414,22.28,85.192,85.151,0.45994392]
[1771372341415,209.4132431,85.58,85.151,0.45994392]
[1771372341592,2.3865414,85.32,85.242,0.45994392]
[1771372341793,63.05219152,85.36,85.246,0.45994392]
[1771372341992,2.3865414,85.33,85.264,0.45994392]
[1771372342193,2.3865414,85.33,85.29,2.3865414]
[1771372342399,0.1,85.35,85.278,0.45994392]
[1771372342617,2.4865414,85.35,85.31,2.3865414]
[1771372342911,2.3865414,85.38,85.32,2.84648532]
[1771372342912,12.96,85.355,85.32,2.84648532]
[1771372343218,2.3865414,85.35,85.31,2.3865414]
[1771372343403,2.3865414,85.35,85.311,41.02636235]
[1771372343608,0.49877375,85.349,85.311,41.02636235]
[1771372344114,2.3865414,85.36,85.32,2.3865414]
[1771372344115,18.92,85.358,85.32,2.3865414]
[1771372344298,2.3865414,85.35,85.312,0.45994392]
[1771372344618,18.92,85.358,85.312,0.45994392]
[1771372345199,18.92,85.358,85.32,2.3865414]
[1771372346012,0.49877375,85.357,85.321,11.72044397]
[1771372346913,0.49877375,85.357,85.33,2.3865414]
[1771372348517,0.49877375,85.355,85.33,2.3865414]
[1771372349401,22.7,85.356,85.29,2.3865414]
[1771372349402,0.48428315,85.349,85.31,2.3865414]
[1771372350102,11.71673618,85.348,85.31,2.3865414]
[1771372350295,2.3865414,85.34,85.31,2.3865414]
[1771372350499,11.71673618,85.348,85.311,11.72181781]
[1771372351303,11.71673618,85.348,85.31,2.3865414]
[1771372351698,11.71673618,85.348,85.29,2.3865414]
[1771372351699,2.3865414,85.33,85.29,2.3865414]
[1771372351910,22.68,85.347,85.29,2.3865414]
[1771372351911,2.3865414,85.32,85.29,2.3865414]
[1771372352111,22.68,85.319,85.29,2.3865414]
[1771372353523,22.68,85.319,85.287,11.72501347]
[1771372354621,11.72085609,85.318,85.28,2.3865414]
[1771372354823,34.38085609,85.318,85.28,2.3865414]
[1771372356704,34.38085609,85.318,85.28,2.88654549]
[1771372357122,11.72085609,85.318,85.28,2.88654549]
[1771372357424,11.72113085,85.316,85.28,2.88654549]
[1771372357818,22.66,85.315,85.28,2.88654549]
[1771372358323,2.3865414,85.31,85.27,0.50000409]
[1771372358516,2.3865414,85.3,85.264,0.50000409]
[1771372359222,11.72346686,85.299,85.266,0.50000409]
[1771372359425,11.72346686,85.299,85.265,11.72814167]
[1771372359426,2.3865414,85.29,85.257,0.50000409]
[1771372359732,22.64,85.347,85.31,0.50000409]
[1771372359920,40.9984889,85.369,85.32,2.3865414]
[1771372360116,40.9984889,85.369,85.318,0.50000409]
[1771372360117,22.64,85.368,85.33,2.3865414]
[1771372360315,22.64,85.367,85.32,2.3865414]
[1771372361327,2.3865414,85.36,85.319,11.72071871]
[1771372361807,2.3865414,85.36,85.318,0.50000409]
[1771372363210,2.3865414,85.34,85.304,0.50000409]
[1771372363411,2.3865414,85.35,85.281,12.2258853]
[1771372363412,11.72071871,85.319,85.281,12.2258853]
[1771372363609,2.3865414,85.31,85.281,12.2258853]
[1771372363825,22.62,85.309,85.281,12.2258853]
[1771372364221,2.3865414,85.31,85.281,12.2258853]
[1771372364427,22.64,85.309,85.281,12.2258853]
[1771372364623,2.3865414,85.31,85.276,12.22663291]
[1771372364821,22.64,85.309,85.276,12.22663291]
[1771372365526,22.64,85.308,85.277,0.50000409]
[1771372365921,22.64,85.308,85.28,7.07990554]
[1771372367328,41.02251549,85.319,85.28,18.80594536]
[1771372367529,22.62,85.318,85.28,18.80594536]
[1771372368116,22.62,85.317,85.28,18.80594536]
[1771372369325,41.02251549,85.319,85.28,18.80594536]
[1771372369630,22.62,85.318,85.28,18.80594536]
[1771372369816,22.62,85.318,85.28,7.07990554]
[1771372370226,7.07990554,85.31,85.271,0.50000409]
[1771372370531,22.62,85.318,85.281,0.50000409]
[1771372371330,41.02395798,85.316,85.281,0.50000409]
[1771372371636,22.62,85.315,85.281,0.50000409]
[1771372372423,41.02395798,85.316,85.281,0.50000409]
[1771372372625,22.62,85.315,85.281,0.50000409]
[1771372374113,41.0249197,85.314,85.281,0.50000409]
[1771372375837,41.0249197,85.314,85.251,12.23007177]
[1771372376040,7.07990554,85.3,85.26,7.07990554]
[1771372376445,22.6,85.313,85.27,7.07990554]
[1771372376636,41.0249197,85.314,85.29,7.07990554]
[1771372376637,22.6,85.312,85.29,7.07990554]
[1771372376822,22.6,85.311,85.284,0.50000409]
[1771372377346,22.6,85.31,85.284,0.50000409]
[1771372378149,11.72209262,85.309,85.284,0.50000409]
[1771372382140,7.07990554,85.3,85.26,7.07990554]
[1771372382446,7.07990554,85.3,85.262,0.50000409]
[1771372383153,7.07990554,85.3,85.27,7.07990554]
[1771372383330,41.02732418,85.309,85.27,7.07990554]
[1771372383728,41.03213401,85.299,85.27,7.07990554]
[1771372385638,41.03213401,85.299,85.247,29.32623592]
[1771372385639,7.07990554,85.28,85.23,7.07990554]
[1771372385843,7.07990554,85.27,85.22,7.07990554]
[1771372386042,7.07990554,85.26,85.22,7.07990554]
[1771372386622,7.07990554,85.25,85.216,0.50000409]
[1771372387041,22.66,85.249,85.216,0.50000409]
[1771372387628,7.07990554,85.24,85.216,0.50000409]
[1771372388030,2.38299378,85.24,85.216,12.23486729]
[1771372389046,2.38299378,85.24,85.217,0.50000409]
[1771372392550,22.66,85.239,85.217,0.50000409]
[1771372394145,2.38299378,85.23,85.202,0.50000409]
[1771372394357,11.73309554,85.229,85.202,0.50000409]
[1771372394944,11.73309554,85.229,85.204,0.50000409]
[1771372396356,11.73309554,85.229,85.2,7.4]
[1771372396357,11.73309554,85.229,85.206,0.50000409]
[1771372398239,52.84,85.259,85.19,31.9290731]
[1771372398240,0.46965506,85.343,85.244,0.475273]
[1771372398448,11.76,85.473,85.291,0.475273]
[1771372398449,0.46965506,85.329,85.291,0.475273]
[1771372399370,0.46965506,85.329,85.3,2.38299378]
[1771372399840,0.46965506,85.329,85.3,7.07622366]
[1771372401539,0.46965506,85.328,85.3,7.07622366]
[1771372401848,0.46965506,85.328,85.3,7.07545855]
[1771372402042,0.46965506,85.328,85.31,7.07545855]
[1771372405257,7.07545855,85.35,85.267,4.61729252]
[1771372405258,0.46965506,85.349,85.32,7.07545855]
[1771372405554,0.46965506,85.344,85.32,7.07545855]
[1771372406342,22.76,85.343,85.32,7.07545855]
[1771372406557,0.46965506,85.342,85.32,7.07545855]
[1771372408660,29.28869567,85.358,85.25,7.07545855]
[1771372408661,0.46965506,85.353,85.331,0.475273]
[1771372408865,0.46965506,85.353,85.34,7.07545855]
[1771372408866,22.8,85.352,85.34,7.07545855]
[1771372409066,52.82,85.365,85.33,7.07545855]
[1771372409067,23.30000125,85.351,85.33,7.07545855]
[1771372409246,23.30000125,85.35,85.33,7.07545855]
[1771372409442,0.50000125,85.349,85.33,7.07545855]
[1771372410258,0.50000125,85.347,85.33,7.07545855]
[1771372410764,0.50000125,85.345,85.33,7.07545855]
[1771372411466,11.71673618,85.348,85.31,7.07545855]
[1771372411467,0.50000125,85.343,85.31,7.07545855]
[1771372411766,0.50000125,85.341,85.32,7.07545855]
[1771372412644,0.50000125,85.339,85.32,7.07545855]
[1771372413457,0.50000125,85.337,85.32,7.07545855]
[1771372416165,64.5383838,85.336,85.32,7.07545855]
[1771372416366,22.84,85.335,85.33,7.07545855]
[1771372416571,22.84,85.334,85.32,7.07545855]
[1771372417362,22.86,85.333,85.32,7.07545855]
[1771372419669,52.82,85.336,85.32,7.07545855]
[1771372419877,52.82,85.336,85.33,2.37588871]
[1771372420173,22.88,85.335,85.33,2.37588871]
[1771372420382,22.88,85.334,85.32,2.37588871]
[1771372426371,11.71879577,85.333,85.292,41.03550157]
[1771372426677,0.50000125,85.332,85.31,2.37588871]
[1771372426979,22.94,85.331,85.31,2.37588871]
[1771372427180,23.44000125,85.331,85.31,2.37588871]
[1771372427364,22.94,85.331,85.31,2.37588871]
[1771372427566,22.94,85.331,85.32,2.37588871]
[1771372428782,75.74,85.331,85.32,2.37588871]
[1771372430483,0.50000125,85.33,85.31,2.37588871]
[1771372433071,75.74,85.331,85.311,11.72181781]
[1771372433268,0.50000125,85.329,85.31,2.37588871]
[1771372433879,0.50000125,85.329,85.3,2.37588871]
[1771372434084,0.50000125,85.327,85.3,2.37588871]
[1771372434782,0.50000125,85.327,85.31,2.37588871]
[1771372437774,0.50000125,85.325,85.31,2.37588871]
[1771372440192,0.50000125,85.323,85.277,29.31592186]
[1771372440407,23.08,85.322,85.31,2.37588871]
[1771372440975,0.50000125,85.321,85.31,2.37588871]
[1771372441175,0.50000125,85.321,85.3,2.37588871]
[1771372441407,0.50000125,85.319,85.3,2.37588871]
[1771372441694,23.08,85.318,85.28,2.37588871]
[1771372441903,0.50000125,85.317,85.28,2.37588871]
[1771372442679,0.50000125,85.315,85.29,2.37588871]
[1771372443688,0.50000125,85.313,85.29,2.37588871]
[1771372444899,0.50000125,85.312,85.29,2.37588871]
[1771372446790,0.50000125,85.31,85.29,2.37588871]
[1771372446993,0.50000125,85.308,85.29,2.37588871]
[1771372448981,52.8,85.309,85.29,2.37588871]
[1771372449704,0.50000125,85.308,85.29,2.37588871]
[1771372451391,0.50000125,85.308,85.29,14.10055004]
[1771372454014,52.8,85.309,85.3,2.37588871]
[1771372454215,23.2,85.308,85.3,2.37588871]
[1771372454588,23.2,85.307,85.3,2.37588871]
[1771372454790,0.50000125,85.322,85.3,2.37588871]
[1771372454991,23.2,85.321,85.3,2.37588871]
[1771372458303,23.2,85.321,85.301,11.72319199]
[1771372458696,23.2,85.321,85.3,2.37588871]
[1771372459094,23.2,85.321,85.3,14.09913111]
[1771372460827,0.50000125,85.322,85.3,14.09913111]
[1771372461010,52.82,85.33,85.3,14.09913111]
[1771372461011,23.24,85.321,85.31,2.37588871]
[1771372461906,23.24,85.321,85.31,2.37672027]
[1771372462121,23.24,85.32,85.31,2.37672027]
[1771372468120,0.50000125,85.328,85.31,2.37672027]
[1771372468438,23.78000125,85.327,85.31,2.37672027]
[1771372468640,0.50000125,85.326,85.31,2.37672027]
[1771372469041,0.50000125,85.341,85.32,2.37672027]
[1771372469344,0.50000125,85.335,85.32,2.37672027]
[1771372477925,0.50000125,85.335,85.295,7.4]
[1771372477926,0.50000125,85.335,85.296,41.03357718]
[1771372478122,0.50000125,85.335,85.32,2.37672027]
[1771372478323,12.21865969,85.334,85.31,2.37672027]
[1771372478549,0.50000125,85.333,85.31,2.37672027]
[1771372479437,29.29397075,85.342,85.31,2.37672027]
[1771372479438,23.34,85.332,85.31,2.37672027]
[1771372480349,0.50000125,85.342,85.32,2.37672027]
[1771372480547,23.84000125,85.341,85.32,2.37672027]
[1771372480751,0.50000125,85.34,85.32,2.37672027]
[1771372480929,11.71691347,85.347,85.32,2.37672027]
[1771372481130,23.36,85.346,85.32,2.37672027]
[1771372482248,23.36,85.346,85.31,2.37672027]
[1771372483435,0.50000125,85.344,85.311,11.72181781]
[1771372484852,0.50000125,85.342,85.32,2.37672027]
[1771372485553,11.71742263,85.343,85.32,2.37672027]
[1771372486255,23.38,85.342,85.32,2.37672027]
[1771372486449,23.88000125,85.342,85.32,2.37672027]
[1771372487538,11.71769723,85.341,85.32,2.37672027]
[1771372487739,0.50000125,85.34,85.312,11.72160224]
[1771372487945,0.50000125,85.338,85.312,11.72160224]
[1771372488145,0.50000125,85.336,85.301,11.72319199]
[1771372488341,0.50000125,85.336,85.301,19.12319199]